bitfinex/quotes_SOLUSD_20220129
["timestamp","ask_amount","ask_price","bid_price","bid_amount"]
[1643432677337,6.0,94.328,94.287,1.42361721]
[1643432678140,6.0,94.328,94.279,1.42361721]
[1643432678339,6.0,94.328,94.275,1.42361721]
[1643432678739,6.0,94.328,94.276,1.42361721]
[1643432679038,24.3089,94.337,94.274,1.42361721]
[1643432679238,24.3089,94.337,94.27,39.56270688]
[1643432679239,24.3089,94.337,94.275,1.42361721]
[1643432679639,15.914,94.33,94.275,1.42361721]
[1643432680038,15.914,94.33,94.272,1.42361721]
[1643432680238,15.914,94.33,94.27,1.42361721]
[1643432681739,15.914,94.33,94.271,1.42361721]
[1643432682142,15.914,94.33,94.27,0.25]
[1643432682540,6.0,94.32,94.272,1.42361721]
[1643432683242,6.0,94.32,94.273,1.42361721]
[1643432683442,15.914,94.33,94.273,1.42361721]
[1643432683640,24.3089,94.337,94.282,1.42361721]
[1643432684041,24.3089,94.337,94.285,1.42361721]
[1643432684539,24.3089,94.337,94.282,1.42361721]
[1643432684740,24.3089,94.337,94.279,1.42361721]
[1643432684940,24.3089,94.337,94.278,1.42361721]
[1643432685140,15.914,94.33,94.277,1.42361721]
[1643432685542,15.914,94.33,94.28,1.42361721]
[1643432685940,15.914,94.33,94.28,1.67361721]
[1643432686141,15.914,94.33,94.287,1.42361721]
[1643432686744,15.914,94.33,94.288,1.42361721]
[1643432686943,15.414,94.33,94.288,1.42361721]
[1643432687143,15.414,94.33,94.29,1.42361721]
[1643432687544,15.414,94.33,94.288,33.98360988]
[1643432687944,15.414,94.33,94.29,1.42361721]
[1643432688347,15.414,94.33,94.29,1.67361721]
[1643432689247,15.414,94.33,94.291,1.42361721]
[1643432689844,15.414,94.33,94.28,33.87154006]
[1643432689845,15.414,94.33,94.29,0.25]
[1643432690951,15.414,94.33,94.288,1.42361721]
[1643432691149,6.0,94.32,94.288,1.42361721]
[1643432691754,24.3089,94.337,94.288,1.42361721]
[1643432692049,6.0,94.327,94.289,1.42361721]
[1643432692249,6.0,94.327,94.286,1.42361721]
[1643432692450,6.0,94.327,94.283,1.42361721]
[1643432692650,6.0,94.327,94.282,1.42361721]
[1643432693054,6.0,94.327,94.283,42.42072332]
[1643432693251,6.0,94.327,94.287,1.42361721]
[1643432693454,6.0,94.327,94.288,1.42361721]
[1643432694252,6.0,94.327,94.289,1.42361721]
[1643432694653,6.0,94.327,94.29,0.25]
[1643432695657,6.0,94.327,94.291,1.42361721]
[1643432696057,6.0,94.327,94.29,0.25]
[1643432696058,6.0,94.327,94.293,1.42361721]
[1643432696456,6.0,94.327,94.294,1.42361721]
[1643432697459,6.0,94.327,94.283,1.42361721]
[1643432697659,22.7192,94.326,94.282,1.42361721]
[1643432697860,22.7192,94.326,94.283,1.42361721]
[1643432698159,22.7192,94.326,94.282,1.42361721]
[1643432698562,32.0792,94.33,94.284,1.42361721]
[1643432698760,16.1652,94.33,94.285,1.67361721]
[1643432698960,24.6059,94.349,94.292,1.42361721]
[1643432699160,24.6059,94.349,94.297,1.42361721]
[1643432699360,24.6059,94.349,94.299,1.42361721]
[1643432699962,15.77991299,94.348,94.299,1.42361721]
[1643432700161,15.77991299,94.348,94.298,0.25]
[1643432700162,15.77991299,94.348,94.298,1.67361721]
[1643432701166,15.77991299,94.348,94.298,0.25]
[1643432701362,6.0,94.338,94.298,1.67361721]
[1643432701562,15.912,94.34,94.298,1.42361721]
[1643432701863,15.77991299,94.348,94.299,0.25]
[1643432702062,15.77991299,94.348,94.299,1.67361721]
[1643432702666,15.77991299,94.348,94.3,1.42361721]
[1643432705169,15.77991299,94.348,94.297,1.42361721]
[1643432705368,15.77991299,94.348,94.288,1.42361721]
[1643432705768,15.77991299,94.348,94.289,0.25]
[1643432705972,15.913,94.34,94.293,1.42361721]
[1643432706171,23.6299,94.339,94.293,1.42361721]
[1643432706568,6.0,94.329,94.291,1.42361721]
[1643432706968,6.0,94.329,94.29,1.42361721]
[1643432707187,6.0,94.329,94.291,1.42361721]
[1643432707588,6.0,94.329,94.292,1.42361721]
[1643432707788,6.0,94.329,94.289,1.42361721]
[1643432707988,6.0,94.329,94.291,1.42361721]
[1643432708388,6.0,94.329,94.292,1.42361721]
[1643432708589,6.0,94.329,94.293,1.42361721]
[1643432708790,6.0,94.329,94.294,1.42361721]
[1643432708989,6.0,94.329,94.296,1.42361721]
[1643432709189,23.6299,94.339,94.296,1.42361721]
[1643432709390,23.6299,94.339,94.297,1.42361721]
[1643432709590,23.6299,94.339,94.285,6.0]
[1643432709591,23.6299,94.339,94.296,1.42361721]
[1643432709791,23.6299,94.339,94.297,0.25]
[1643432710091,23.6299,94.339,94.297,1.42361721]
[1643432710292,23.6299,94.339,94.286,0.25]
[1643432710293,23.6299,94.339,94.298,1.67361721]
[1643432710491,23.6299,94.339,94.296,1.42361721]
[1643432710893,23.6299,94.339,94.297,0.25]
[1643432711492,23.6299,94.339,94.298,1.42361721]
[1643432711891,23.6299,94.339,94.299,0.25]
[1643432713495,23.6299,94.339,94.297,1.42361721]
[1643432713693,23.6299,94.339,94.298,0.25]
[1643432714094,23.6299,94.339,94.298,1.67361721]
[1643432714296,23.6299,94.339,94.297,1.42361721]
[1643432714795,23.6299,94.339,94.292,0.00100242]
[1643432714796,15.914,94.33,94.292,0.00100242]
[1643432714995,6.0,94.329,94.259,4.51596593]
[1643432715195,6.0,94.329,94.253,7.34500234]
[1643432715396,23.2211,94.328,94.253,4.51596593]
[1643432715806,15.916,94.32,94.253,4.51596593]
[1643432715996,15.916,94.32,94.248,2.82903641]
[1643432716198,15.916,94.32,94.249,22.9821]
[1643432716698,15.916,94.32,94.25,4.51596593]
[1643432717299,17.366,94.32,94.25,4.51596593]
[1643432717499,17.366,94.32,94.249,22.9821]
[1643432720302,15.916,94.32,94.249,22.9821]
[1643432721903,15.916,94.32,94.228,2.82903641]
[1643432722102,15.916,94.32,94.201,4.24355461]
[1643432722103,15.922,94.3,94.216,2.82903641]
[1643432722302,2.95669142,94.319,94.216,2.82903641]
[1643432722303,23.5228,94.299,94.216,2.82903641]
[1643432722503,26.79039142,94.319,94.223,2.82903641]
[1643432722504,2.95669142,94.313,94.223,2.82903641]
[1643432722703,2.95669142,94.313,94.247,2.7918128]
[1643432722904,23.8337,94.319,94.248,39.52869763]
[1643432723103,23.8337,94.319,94.248,62.23941653]
[1643432723304,23.3282,94.318,94.248,62.23941653]
[1643432723507,15.3,94.35,94.258,6.0]
[1643432723706,23.3282,94.348,94.259,107.0]
[1643432723906,23.3282,94.348,94.259,56.3038128]
[1643432724105,23.3282,94.348,94.269,6.0]
[1643432724308,31.433,94.38,94.27,0.25]
[1643432724507,15.91,94.36,94.27,47.84187604]
[1643432724708,1.98281551,94.362,94.271,25.47861131]
[1643432724906,1.98281551,94.362,94.272,0.25]
[1643432725107,1.98281551,94.362,94.281,6.0]
[1643432725308,1.98281551,94.362,94.282,0.25]
[1643432725507,1.98281551,94.362,94.283,6.0]
[1643432725708,1.98281551,94.362,94.285,45.75969493]
[1643432726005,6.0,94.352,94.286,0.25]
[1643432726812,6.0,94.352,94.265,2.7918128]
[1643432726813,23.0039,94.351,94.265,2.7918128]
[1643432727209,15.912,94.35,94.266,0.25]
[1643432727811,15.912,94.35,94.274,6.0]
[1643432728011,15.912,94.35,94.275,6.0]
[1643432728212,23.0039,94.351,94.276,6.0]
[1643432728412,23.0039,94.351,94.277,0.25]
[1643432728611,23.0039,94.351,94.285,6.0]
[1643432728812,6.0,94.341,94.286,0.25]
[1643432729010,6.0,94.341,94.277,24.9896]
[1643432729214,24.7784,94.34,94.277,24.9896]
[1643432729814,5.49640044,94.339,94.278,36.46367311]
[1643432730216,5.49640044,94.339,94.279,0.25]
[1643432730516,6.0,94.329,94.279,0.25]
[1643432731417,6.0,94.329,94.278,0.25]
[1643432731616,6.0,94.329,94.277,22.7724928]
[1643432731819,6.0,94.329,94.278,38.63680956]
[1643432732020,6.0,94.329,94.277,22.7724928]
[1643432732524,6.0,94.329,94.245,2.82903641]
[1643432732719,23.6741,94.328,94.247,24.3133]
[1643432732917,23.6741,94.328,94.256,6.0]
[1643432733118,6.0,94.329,94.258,6.0]
[1643432733444,5.49640044,94.339,94.259,29.06459216]
[1643432733618,5.49640044,94.339,94.269,6.0]
[1643432733820,5.49640044,94.339,94.271,42.59086694]
[1643432734322,5.49640044,94.339,94.272,0.25]
[1643432734918,5.49640044,94.339,94.255,2.82903641]
[1643432735420,0.25,94.338,94.248,4.50021948]
[1643432735621,0.25,94.338,94.248,4.75021948]
[1643432735818,0.25,94.338,94.249,27.2227243]
[1643432736019,0.25,94.338,94.25,42.50996739]
[1643432736220,0.25,94.338,94.25,60.98225273]
[1643432736422,0.25,94.338,94.251,0.25]
[1643432737121,6.0,94.329,94.252,22.72085097]
[1643432737323,6.0,94.329,94.25,38.00974791]
[1643432737525,6.0,94.329,94.246,113.7]
[1643432737526,30.2694,94.329,94.246,113.7]
[1643432738323,15.917,94.32,94.247,0.25]
[1643432738524,1.98281551,94.324,94.256,6.0]
[1643432738723,24.2694,94.329,94.256,6.0]
[1643432739022,24.2694,94.329,94.247,56.77180998]
[1643432739023,24.2694,94.329,94.257,0.25]
[1643432739226,24.2694,94.329,94.247,33.79816243]
[1643432739423,24.2694,94.329,94.248,0.25]
[1643432739626,6.29156348,94.328,94.248,0.25]
[1643432739826,6.29156348,94.328,94.247,33.79816243]
[1643432740625,6.0,94.318,94.247,33.79816243]
[1643432741223,0.25,94.317,94.248,0.25]
[1643432741425,23.6636,94.317,94.248,0.25]
[1643432742024,15.919,94.31,94.248,0.25]
[1643432742226,1.18765247,94.309,94.248,0.25]
[1643432742824,1.18765247,94.309,94.247,0.25]
[1643432743825,1.18765247,94.309,94.247,46.5670275]
[1643432744829,1.18765247,94.309,94.247,46.3170275]
[1643432746131,0.25,94.308,94.247,46.3170275]
[1643432746330,23.4136,94.317,94.248,0.25]
[1643432746530,23.4136,94.317,94.247,46.3170275]
[1643432746730,6.0,94.307,94.247,46.3170275]
[1643432746931,6.0,94.307,94.248,0.25]
[1643432747130,6.0,94.307,94.247,46.3170275]
[1643432747329,6.70376747,94.306,94.247,46.3170275]
[1643432747831,0.25,94.305,94.247,46.3170275]
[1643432748637,23.8922,94.305,94.247,46.3170275]
[1643432748841,0.25,94.304,94.247,46.3170275]
[1643432749637,15.917,94.32,94.247,46.3170275]
[1643432749838,23.1041,94.319,94.247,46.3170275]
[1643432750037,23.1041,94.319,94.248,0.25]
[1643432750639,6.18040086,94.318,94.248,0.25]
[1643432752439,6.18040086,94.318,94.247,46.3170275]
[1643432752640,6.0,94.308,94.247,46.3170275]
[1643432753440,6.0,94.308,94.248,107.25]
[1643432753647,23.1984,94.339,94.258,113.0]
[1643432753842,23.1984,94.339,94.259,0.25]
[1643432754041,23.1984,94.339,94.261,107.0]
[1643432754240,23.1984,94.339,94.262,24.0543]
[1643432754541,7.36717896,94.338,94.263,147.19376389]
[1643432754742,7.36717896,94.338,94.263,147.44376389]
[1643432755143,0.25,94.337,94.263,147.44376389]
[1643432755963,0.25,94.337,94.263,147.19376389]
[1643432756569,0.25,94.337,94.273,6.0]
[1643432757167,6.0,94.328,94.273,6.0]
[1643432757368,6.0,94.328,94.274,0.25]
[1643432758369,6.0,94.328,94.264,0.25]
[1643432760569,23.1984,94.339,94.273,6.0]
[1643432760772,6.0,94.318,94.274,22.9723]
[1643432760969,23.1984,94.339,94.274,22.9723]
[1643432760970,0.25,94.338,94.274,22.9723]
[1643432761171,15.909,94.37,94.284,6.0]
[1643432761372,65.94474119,107.54,94.29,15.904]
[1643432761373,23.3155,94.396,94.29,15.904]
[1643432761574,23.3155,94.396,94.347,5.53744976]
[1643432761974,23.7407,94.407,94.348,0.25]
[1643432762172,15.3,94.42,94.348,0.25]
[1643432762473,6.72054066,94.419,94.348,36.38089578]
[1643432762672,6.72054066,94.419,94.357,6.0]
[1643432762872,0.25,94.418,94.358,6.25]
[1643432763073,6.0,94.409,94.358,0.25]
[1643432763974,6.0,94.409,94.35,0.25]
[1643432765074,6.0,94.409,94.349,2.79190847]
[1643432765075,6.0,94.409,94.348,33.33898731]
[1643432765278,0.25,94.408,94.348,33.33898731]
[1643432765879,15.901,94.41,94.348,33.33898731]
[1643432766081,0.25,94.409,94.349,0.25]
[1643432766677,15.901,94.41,94.349,0.25]
[1643432767479,15.901,94.41,94.339,0.25]
[1643432767779,0.25,94.409,94.339,0.25]
[1643432767978,0.25,94.409,94.335,6.0]
[1643432768177,0.25,94.409,94.336,6.0]
[1643432768380,0.25,94.409,94.337,39.24544184]
[1643432768978,0.75867529,94.399,94.337,39.24544184]
[1643432769379,6.0,94.39,94.337,39.24544184]
[1643432775286,15.899,94.42,94.337,39.24544184]
[1643432775487,15.899,94.42,94.347,6.0]
[1643432775889,15.899,94.42,94.349,6.0]
[1643432776289,15.899,94.42,94.35,0.25]
[1643432776490,0.25,94.419,94.35,0.25]
[1643432778092,25.1582,94.419,94.35,25.16]
[1643432778599,23.5232,94.434,94.36,6.0]
[1643432778796,23.5232,94.434,94.361,25.16]
[1643432778995,6.0,94.424,94.362,107.0]
[1643432779195,6.0,94.424,94.37,6.0]
[1643432779395,6.0,94.424,94.372,6.0]
[1643432779595,6.0,94.424,94.373,32.78372334]
[1643432779796,0.25,94.423,94.373,33.03372334]
[1643432779997,0.25,94.423,94.383,6.0]
[1643432780395,0.25,94.423,94.384,0.25]
[1643432780796,6.0,94.424,94.384,0.25]
[1643432781003,24.9082,94.449,94.384,0.25]
[1643432781597,24.9082,94.449,94.384,6.25]
[1643432781998,24.9082,94.449,94.384,0.25]
[1643432782417,6.0,94.439,94.375,0.25]
[1643432782818,6.0,94.439,94.375,107.25]
[1643432785926,6.0,94.439,94.385,6.0]
[1643432786129,6.0,94.439,94.375,107.25]
[1643432786330,6.0,94.439,94.385,6.0]
[1643432786728,6.0,94.439,94.386,0.25]
[1643432787531,24.9082,94.449,94.386,107.25]
[1643432788329,24.9082,94.449,94.396,6.0]
[1643432788530,24.9082,94.449,94.397,34.97537619]
[1643432788729,24.9082,94.449,94.397,35.22537619]
[1643432788933,24.9082,94.449,94.407,6.0]
[1643432789230,24.9082,94.449,94.408,0.25]
[1643432790230,31.189,94.48,94.408,0.25]
[1643432790431,15.889,94.48,94.408,107.25]
[1643432791034,22.9558,94.479,94.408,107.25]
[1643432791435,6.0,94.459,94.408,107.25]
[1643432792833,0.25,94.458,94.408,107.25]
[1643432793435,22.9558,94.479,94.408,107.25]
[1643432793634,0.25,94.468,94.408,107.25]
[1643432794038,15.887,94.49,94.418,6.0]
[1643432794238,6.32770974,94.508,94.419,37.69630569]
[1643432794437,6.32770974,94.508,94.419,37.94630569]
[1643432794635,6.32770974,94.508,94.429,6.0]
[1643432795036,2.95669142,94.501,94.429,6.0]
[1643432795236,6.32770974,94.508,94.419,37.69630569]
[1643432795436,24.6015,94.509,94.43,0.25]
[1643432795437,1.15150621,94.49,94.43,0.25]
[1643432796539,0.25,94.489,94.421,0.25]
[1643432797134,6.0,94.48,94.421,0.25]
[1643432797936,6.0,94.48,94.42,24.8742]
[1643432798336,6.0,94.48,94.421,0.25]
[1643432799938,22.7404,94.479,94.421,0.25]
[1643432800138,22.9904,94.479,94.421,0.25]
[1643432801168,17.03850621,94.49,94.421,0.25]
[1643432801470,17.03850621,94.49,94.43,6.0]
[1643432801770,17.03850621,94.49,94.431,0.25]
[1643432801771,23.0683,94.489,94.431,0.25]
[1643432801967,23.0683,94.489,94.43,6.0]
[1643432802168,23.0683,94.489,94.431,0.25]
[1643432802367,6.0,94.479,94.431,0.25]
[1643432803168,22.8224,94.478,94.431,0.25]
[1643432803369,22.8224,94.478,94.421,0.25]
[1643432803967,17.03850621,94.49,94.421,0.25]
[1643432804167,17.03850621,94.49,94.42,24.8742]
[1643432805368,24.0788,94.489,94.42,24.8742]
[1643432805569,24.0788,94.489,94.421,0.25]
[1643432807576,6.0,94.479,94.421,0.25]
[1643432807772,24.0752,94.478,94.421,0.25]
[1643432807972,24.0752,94.478,94.42,24.8742]
[1643432809073,24.0752,94.478,94.419,37.69630569]
[1643432811078,6.0,94.468,94.419,37.69630569]
[1643432811480,0.25,94.467,94.419,37.69630569]
[1643432812082,0.25,94.467,94.401,23.3998]
[1643432812280,33.3235,94.467,94.401,23.3998]
[1643432812480,33.3235,94.467,94.383,2.79351414]
[1643432813081,33.3235,94.467,94.384,33.45174596]
[1643432813683,33.3235,94.467,94.384,32.72178796]
[1643432815185,15.892,94.46,94.384,32.72178796]
[1643432815484,0.25,94.459,94.384,32.72178796]
[1643432816485,15.894,94.45,94.384,32.72178796]
[1643432816685,27.1678479,94.449,94.384,32.72178796]
[1643432816885,27.4178479,94.449,94.384,32.72178796]
[1643432817289,24.7838,94.449,94.385,116.49351414]
[1643432817687,24.7838,94.449,94.386,3.04351414]
[1643432817886,24.7838,94.449,94.387,24.4515]
[1643432818287,24.7838,94.449,94.388,0.25]
[1643432818688,0.25,94.449,94.388,0.25]
[1643432818888,22.8563,94.463,94.388,0.25]
[1643432819089,6.0,94.454,94.396,6.0]
[1643432819488,6.0,94.454,94.385,113.7]
[1643432819992,6.0,94.454,94.386,0.25]
[1643432820188,0.25,94.453,94.386,22.8958]
[1643432821491,0.25,94.453,94.386,22.6458]
[1643432821692,0.25,94.453,94.385,113.7]
[1643432823791,0.25,94.459,94.386,2.7917269]
[1643432823990,0.25,94.459,94.386,109.7917269]
[1643432824391,15.892,94.46,94.387,2.7917269]
[1643432824594,22.8563,94.463,94.387,3.0417269]
[1643432824793,22.8563,94.463,94.389,107.0]
[1643432825192,22.8563,94.463,94.39,0.25]
[1643432825390,22.8563,94.463,94.389,109.7917269]
[1643432825591,22.8563,94.463,94.39,0.25]
[1643432826391,0.25,94.462,94.39,0.25]
[1643432826591,6.0,94.453,94.39,0.25]
[1643432826792,22.8743,94.452,94.39,0.25]
[1643432827092,22.6243,94.452,94.39,0.25]
[1643432827300,22.6243,94.452,94.39,3.0417269]
[1643432828393,0.25,94.451,94.39,3.0417269]
[1643432831897,0.25,94.461,94.39,3.0417269]
[1643432832299,24.4283,94.461,94.39,3.0417269]
[1643432832901,2.8325718,94.472,94.39,3.0417269]
[1643432833098,2.8325718,94.472,94.401,107.0]
[1643432833300,2.8325718,94.472,94.402,39.88310926]
[1643432833500,2.8325718,94.472,94.403,107.0]
[1643432833699,2.8325718,94.472,94.403,109.7917269]
[1643432834002,2.8325718,94.472,94.404,26.3597269]
[1643432834399,2.8325718,94.472,94.405,109.7917269]
[1643432834601,2.8325718,94.472,94.407,1.42403278]
[1643432834827,2.8325718,94.472,94.408,0.25]
[1643432836030,2.8325718,94.472,94.409,2.7917269]
[1643432836432,0.25,94.471,94.404,24.74203278]
[1643432836632,6.0,94.462,94.402,39.63310926]
[1643432836931,0.25,94.461,94.402,39.63310926]
[1643432837132,24.4111,94.461,94.402,39.63310926]
[1643432841640,24.4111,94.461,94.403,0.25]
[1643432842240,24.4111,94.461,94.402,39.63310926]
[1643432842640,6.0,94.451,94.402,39.63310926]
[1643432843342,6.0,94.451,94.403,107.0]
[1643432843543,24.1611,94.461,94.404,0.25]
[1643432845044,24.1611,94.461,94.405,2.7917269]
[1643432845446,24.1611,94.461,94.406,0.25]
[1643432847147,0.25,94.46,94.406,0.25]
[1643432847746,0.25,94.46,94.403,107.0]
[1643432848646,0.25,94.46,94.404,2.7917269]
[1643432849452,0.25,94.46,94.405,24.8957]
[1643432849852,0.25,94.46,94.406,2.7917269]
[1643432850253,24.1611,94.461,94.407,0.25]
[1643432852051,0.25,94.46,94.407,0.25]
[1643432852453,6.0,94.451,94.407,0.25]
[1643432852652,6.0,94.451,94.406,107.0]
[1643432852853,0.25,94.45,94.406,107.0]
[1643432856078,6.0,94.451,94.406,107.0]
[1643432856276,0.25,94.45,94.406,107.0]
[1643432856878,0.25,94.45,94.405,24.8957]
[1643432857781,0.25,94.45,94.403,16.0471]
[1643432861786,0.25,94.45,94.403,123.0471]
[1643432861987,24.1611,94.461,94.403,123.0471]
[1643432863088,24.1611,94.461,94.404,2.7917269]
[1643432863288,0.25,94.46,94.404,3.0417269]
[1643432863489,0.25,94.46,94.405,23.1367]
[1643432863692,0.25,94.46,94.405,25.92860496]
[1643432863889,0.25,94.46,94.406,3.04190496]
[1643432864288,0.25,94.46,94.406,0.25]
[1643432864488,0.25,94.46,94.406,3.04190496]
[1643432864988,0.25,94.46,94.406,0.25]
[1643432865189,0.25,94.46,94.405,23.1367]
[1643432865694,6.0,94.451,94.405,23.1367]
[1643432865888,0.25,94.45,94.405,23.1367]
[1643432867991,24.1611,94.461,94.413,1.42403278]
[1643432868292,24.1611,94.461,94.412,1.42403278]
[1643432868489,24.1611,94.461,94.413,1.42403278]
[1643432868490,0.25,94.46,94.413,1.42403278]
[1643432868894,0.25,94.46,94.405,23.1367]
[1643432868895,0.25,94.46,94.409,1.42403278]
[1643432869091,0.25,94.46,94.408,1.42403278]
[1643432869291,0.25,94.46,94.407,1.42403278]
[1643432869492,0.25,94.46,94.406,1.42403278]
[1643432870991,0.25,94.46,94.405,24.56073278]
[1643432872792,0.25,94.46,94.405,23.1367]
[1643432873892,6.0,94.451,94.405,23.1367]
[1643432874096,0.25,94.46,94.405,23.1367]
[1643432881702,6.0,94.451,94.405,23.1367]
[1643432881904,0.25,94.45,94.405,23.1367]
[1643432883305,0.25,94.45,94.4,1.42403278]
[1643432883506,23.3209,94.45,94.4,1.42403278]
[1643432883909,23.3209,94.45,94.387,1.42403278]
[1643432884108,23.3209,94.45,94.386,1.42403278]
[1643432884306,23.3209,94.45,94.387,43.57124713]
[1643432885408,6.0,94.44,94.387,43.57124713]
[1643432885808,0.25,94.439,94.387,43.57124713]
[1643432893940,0.25,94.439,94.388,0.25]
[1643432894340,0.25,94.439,94.387,43.57124713]
[1643432897445,0.25,94.439,94.388,0.25]
[1643432897644,6.0,94.44,94.388,0.25]
[1643432898844,0.25,94.439,94.388,0.25]
[1643432899745,0.25,94.439,94.387,43.57124713]
[1643432900147,24.4687,94.439,94.387,43.57124713]
[1643432900746,10.27763403,94.438,94.387,43.57124713]
[1643432901147,0.25,94.437,94.387,43.57124713]
[1643432902948,10.27763403,94.438,94.388,2.79190496]
[1643432903348,10.27763403,94.438,94.387,44.99527991]
[1643432903547,10.27763403,94.438,94.387,43.57124713]
[1643432904550,6.0,94.428,94.387,43.57124713]
[1643432904949,0.25,94.427,94.387,43.57124713]
[1643432905951,0.25,94.437,94.387,43.57124713]
[1643432906154,10.27763403,94.426,94.389,1.42403278]
[1643432906352,0.25,94.425,94.387,44.99527991]
[1643432907254,0.25,94.425,94.392,1.42403278]
[1643432907452,0.25,94.425,94.393,1.42403278]
[1643432907655,0.25,94.425,94.394,1.42403278]
[1643432907952,0.25,94.425,94.397,6.0]
[1643432908354,10.27763403,94.426,94.397,6.0]
[1643432908553,0.25,94.425,94.397,6.0]
[1643432909554,10.27763403,94.424,94.397,6.0]
[1643432909755,10.27763403,94.424,94.394,1.42403278]
[1643432909954,0.25,94.423,94.393,1.42403278]
[1643432911356,0.25,94.423,94.39,1.42403278]
[1643432911656,0.25,94.423,94.389,1.42403278]
[1643432912758,10.27763403,94.422,94.389,1.42403278]
[1643432913257,0.25,94.421,94.389,1.42403278]
[1643432916158,10.27763403,94.42,94.389,1.42403278]
[1643432916358,0.25,94.419,94.389,1.42403278]
[1643432917358,10.27763403,94.42,94.389,1.42403278]
[1643432917558,10.27763403,94.42,94.39,1.42403278]
[1643432918561,10.27763403,94.42,94.389,1.42403278]
[1643432918762,0.25,94.419,94.389,1.42403278]
[1643432919461,10.52763403,94.434,94.389,1.42403278]
[1643432919862,10.52763403,94.434,94.39,1.42403278]
[1643432920062,6.0,94.424,94.39,1.42403278]
[1643432920266,0.25,94.423,94.39,1.42403278]
[1643432920466,0.25,94.423,94.389,1.42403278]
[1643432920867,0.25,94.423,94.39,1.42403278]
[1643432921087,0.25,94.423,94.384,1.42403278]
[1643432921289,25.227,94.423,94.382,1.42403278]
[1643432921490,25.227,94.423,94.362,4.53186771]
[1643432921491,25.227,94.423,94.381,1.42403278]
[1643432921691,7.16133211,94.422,94.381,1.42403278]
[1643432921891,0.25,94.421,94.381,1.42403278]
[1643432922090,0.25,94.421,94.379,1.42403278]
[1643432922590,10.27763403,94.42,94.378,1.42403278]
[1643432922790,0.25,94.419,94.378,1.42403278]
[1643432923291,0.25,94.419,94.376,1.42403278]
[1643432923491,0.25,94.419,94.374,1.42403278]
[1643432923691,6.0,94.41,94.374,1.42403278]
[1643432923891,0.25,94.409,94.369,1.42403278]
[1643432925193,0.25,94.409,94.368,1.42403278]
[1643432925594,10.27763403,94.408,94.368,1.42403278]
[1643432925792,1.29784184,94.407,94.368,1.42403278]
[1643432926193,23.8127,94.406,94.368,1.42403278]
[1643432926393,0.25,94.405,94.368,1.42403278]
[1643432926793,0.25,94.405,94.367,1.42403278]
[1643432926994,0.25,94.405,94.365,1.42403278]
[1643432927395,0.25,94.405,94.361,1.42403278]
[1643432927995,0.25,94.405,94.36,1.42403278]
[1643432928597,10.27763403,94.404,94.36,1.42403278]
[1643432928797,0.25,94.403,94.36,1.42403278]
[1643432929397,0.25,94.403,94.358,1.42403278]
[1643432930000,10.27763403,94.404,94.368,6.0]
[1643432930200,10.27763403,94.404,94.376,1.42403278]
[1643432930401,10.27763403,94.404,94.391,1.42403278]
[1643432930600,10.27763403,94.404,94.401,6.0]
[1643432930999,10.27763403,94.404,94.402,33.82327034]
[1643432931299,10.27763403,94.404,94.39,1.42403278]
[1643432931500,10.27763403,94.404,94.381,1.42403278]
[1643432931699,33.75633403,94.448,94.383,1.42403278]
[1643432931901,2.8325718,94.399,94.386,1.42403278]